[Event "GER-ch Youth-U14w 2022"]
[Site "Willingen"]
[Date "2022.06.07"]
[Round "4.3"]
[White "Wartenberg, Alissa"]
[Black "Haug, Mara"]
[Result "0-1"]
[ECO "C47"]
[WhiteElo "1741"]
[BlackElo "1394"]
[Annotator "NA RC COMBH"]
[PlyCount "108"]
[EventDate "2022.06.05"]
[EventType "swiss"]
[EventRounds "9"]
[EventCountry "GER"]
[SourceTitle "playchess.com"]
[Source "ChessBase"]
[SourceQuality "1"]
[TimeControl "40/4500+30:900+30"]

1. e4 {[%emt 0:00:00]} e5 {[%emt 0:00:00]} 2. Nf3 {[%emt 0:00:00]} Nc6 {[%emt 0:00:00]} 3. Nc3 {[%emt 0:00:00]} Nf6 {[%emt 0:00:00]} 4. d4 {[%emt 0:00:00]} exd4 {[%emt 0:00:00]} 5. Nxd4 {[%emt 0:00:00]} Bb4 {[%emt 0:00:00]} 6. Nxc6 {[%emt 0:00:00]} bxc6 {[%emt 0:00:00]} 7. Bd3 {[%emt 0:00:00]} O-O {[%emt 0:00:00]} 8. O-O {[%emt 0:00:00]} d5 {[%emt 0:00:00]} 9. exd5 {[%emt 0:00:00]} cxd5 {[%emt 0:00:00]} 10. Bg5 {[%emt 0:00:00]} c6 {[%emt 0:00:00]} 11. Qf3 {[%emt 0:00:00]} Rb8 {[%emt 0:00:00]} 12. Bxf6 {[%emt 0:00:00]} Qxf6 {[%emt 0:00:00]} 13. Qxf6 {[%emt 0:00:00]} gxf6 {[%emt 0:00:00]} 14. Ne2 {[%emt 0:00:00]} Bd6 {[%emt 0:00:00]} 15. b3 {[%emt 0:00:00]} Bd7 {[%emt 0:00:00]} 16. Ng3 {[%emt 0:00:00]} Rfe8 {[%emt 0:00:00]} 17. Rad1 {[%emt 0:00:00]} Be5 {[%emt 0:05:13]} 18. c4 {[%emt 0:01:44]} a5 {[%emt 0:07:41]} 19. cxd5 {[%emt 0:03:50]} cxd5 {[%emt 0:03:00]} 20. Bf5 {[%emt 0:02:16]} Be6 {[%emt 0:03:03]} 21. f4 {[%emt 0:09:37]} Bc7 {[%emt 0:12:02]} 22. Bxe6 {[%emt 0:02:36]} fxe6 {[%emt 0:01:14]} 23. Nh5 {[%emt 0:00:35]} Kf7 {[%emt 0:03:39]} 24. f5 {[%emt 0:01:18]} Rbd8 {[%emt 0:06:26]} 25. fxe6+ {[%emt 0:06:03]} Rxe6 {[%emt 0:00:21]} 26. Kh1 {[%emt 0:03:33]} Be5 {[%emt 0:03:15]} 27. h3 {[%emt 0:07:22]} Rc6 {[%emt 0:02:47]} 28. Rd2 {[%emt 0:05:30]} d4 {[%emt 0:06:01]} 29. Nf4 {[%emt 0:02:51]} Rc1 {[%emt 0:11:38]} 30. Rxc1 {[%emt 0:03:52]} Bxf4 {[%emt 0:03:07]} 31. Rcd1 {[%emt 0:00:12]} Bxd2 {[%emt 0:00:08]} 32. Rxd2 {[%emt 0:00:04]} Ke6 {[%emt 0:00:47]} 33. Kg1 {[%emt 0:03:44]} Ke5 {[%emt 0:01:57]} 34. Re2+ {[%emt 0:00:34]} Kf4 {[%emt 0:03:30]} 35. Kf2 {[%emt 0:00:59]} Rc8 {[%emt 0:08:41]} 36. g3+ {[%emt 0:01:41]} Kf5 {[%emt 0:00:44]} 37. h4 {[%emt 0:30:28]} Rc7 {[%emt 0:03:29]} 38. h5 {[%emt 0:03:36]} Kg5 {[%emt 0:02:28]} 39. Kf3 {[%emt 0:02:03]} Rc3+ {[%emt 0:01:49]} 40. Ke4 {[%emt 0:00:25]} Rxg3 {[%emt 0:00:47]} 41. Kxd4 {[%emt 0:15:18]} Kxh5 {[%emt 0:00:00]} 42. Rh2+ {[%emt 0:00:00]} Kg6 {[%emt 0:00:00]} 43. Kc4 {[%emt 0:00:00]} h5 {[%emt 0:00:00]} 44. Kb5 {[%emt 0:00:00]} Rg5+ {[%emt 0:00:00]} 45. Kb6 {[%emt 0:00:00]} Re5 {[%emt 0:00:00]} 46. Rg2+ {[%emt 0:00:00]} Kf5 {[%emt 0:00:00]} 47. Rf2+ {[%emt 0:00:00]} Kg5 {[%emt 0:00:00]} 48. Rg2+ {[%emt 0:00:00]} Kh4 {[%emt 0:00:00]} 49. Rf2 {[%emt 0:00:00]} f5 {[%emt 0:00:33]} 50. b4 {[%emt 0:00:00]} Kg3 {[%emt 0:04:32]} 51. Rb2 {[%emt 0:00:00]} axb4 {[%emt 0:00:10]} 52. Rxb4 {[%emt 0:00:00]} f4 {[%emt 0:00:32]} 53. a4 {[%emt 0:00:00]} f3 {[%emt 0:00:14]} 54. Rb2 {[%emt 0:00:00]} f2 {[%emt 0:00:19]} 0-1

[Event "GER-ch Youth-U14w 2022"]
[Site "Willingen"]
[Date "2022.06.07"]
[Round "4.4"]
[White "Braeutigam, Katerina"]
[Black "Englert, Lin"]
[Result "1-0"]
[ECO "B38"]
[WhiteElo "1860"]
[BlackElo "1503"]
[Annotator "NA RC COMBH"]
[PlyCount "105"]
[EventDate "2022.06.05"]
[EventType "swiss"]
[EventRounds "9"]
[EventCountry "GER"]
[SourceTitle "playchess.com"]
[Source "ChessBase"]
[SourceQuality "1"]
[TimeControl "40/4500+30:900+30"]

1. e4 {[%emt 0:00:00]} c5 {[%emt 0:00:00]} 2. Nf3 {[%emt 0:00:00]} Nc6 {[%emt 0:00:00]} 3. d4 {[%emt 0:00:00]} cxd4 {[%emt 0:00:00]} 4. Nxd4 {[%emt 0:00:00]} g6 {[%emt 0:00:00]} 5. c4 {[%emt 0:00:00]} Bg7 {[%emt 0:00:00]} 6. Be3 {[%emt 0:00:00]} Nf6 {[%emt 0:00:00]} 7. Nc3 {[%emt 0:00:00]} d6 {[%emt 0:00:00]} 8. Be2 {[%emt 0:00:00]} O-O {[%emt 0:00:00]} 9. O-O {[%emt 0:00:00]} a6 {[%emt 0:00:00]} 10. f3 {[%emt 0:00:00]} Qc7 {[%emt 0:00:00]} 11. Qd2 {[%emt 0:00:00]} Bd7 {[%emt 0:00:00]} 12. Rac1 {[%emt 0:00:00]} Rac8 {[%emt 0:02:46]} 13. Rfd1 {[%emt 0:00:00]} Ne5 {[%emt 0:11:57]} 14. Nd5 {[%emt 0:07:59]} Nxd5 {[%emt 0:02:29]} 15. exd5 {[%emt 0:03:09]} Rfd8 {[%emt 0:10:19]} 16. h3 {[%emt 0:11:56]} f6 {[%emt 0:01:35]} 17. f4 {[%emt 0:09:44]} Nf7 {[%emt 0:02:09]} 18. Ne6 {[%emt 0:05:15]} Bxe6 {[%emt 0:01:21]} 19. dxe6 {[%emt 0:00:18]} Nh6 {[%emt 0:01:57]} 20. g4 {[%emt 0:02:33]} Kh8 {[%emt 0:02:09]} 21. f5 {[%emt 0:01:28]} gxf5 {[%emt 0:07:01]} (21... Ng8 $142 22. Kg2 gxf5 23. gxf5 d5) 22. Bxh6 {[%emt 0:03:54]} Bxh6 {[%emt 0:00:48]} 23. Qxh6 {[%emt 0:00:44]} fxg4 {[%emt 0:00:41]} 24. hxg4 {[%emt 0:23:43]} Qc5+ {[%emt 0:06:07]} 25. Kg2 {[%emt 0:02:28]} Rg8 {[%emt 0:02:08]} 26. Rd5 {[%emt 0:02:14]} Qb4 {[%emt 0:01:34]} 27. Rh5 {[%emt 0:07:14]} Rg7 {[%emt 0:03:11]} 28. Rc2 {[%emt 0:03:09]} Qa4 {[%emt 0:02:55]} 29. Bd3 {[%emt 0:01:00]} Qc6+ {[%emt 0:01:36]} 30. Kh2 {[%emt 0:02:12]} Kg8 {[%emt 0:01:34]} 31. Bxh7+ {[%emt 0:00:33]} Kf8 {[%emt 0:00:01]} 32. Bg6 {[%emt 0:00:50]} Qf3 {[%emt 0:00:57]} 33. Rh4 $18 {[%emt 0:01:03]} (33. Rf5 $142 Qf4+ 34. Rxf4 Kg8 35. g5 Rd8 36. Rh4 Kf8 37. Bf7 fxg5 38. Qh8+ Rg8 39. Qxg8#) 33... Rc5 {[%emt 0:00:06]} 34. Bf7 {[%emt 0:00:24]} Rcg5 {[%emt 0:00:29]} 35. Qh8+ {[%emt 0:00:35]} Rg8 {[%emt 0:00:03]} 36. Qh6+ {[%emt 0:00:09]} R8g7 {[%emt 0:00:16]} 37. Qh8+ {[%emt 0:00:41]} Rg8 {[%emt 0:00:04]} 38. Bxg8 {[%emt 0:00:35]} Qf4+ {[%emt 0:00:30]} 39. Kg1 {[%emt 0:00:31]} Qg3+ {[%emt 0:00:38]} 40. Kh1 {[%emt 0:00:32]} Qf3+ {[%emt 0:00:14]} 41. Kh2 {[%emt 0:02:04]} Qf4+ {[%emt 0:00:00]} 42. Kg1 {[%emt 0:00:44]} Qe3+ {[%emt 0:00:00]} 43. Kf1 {[%emt 0:03:11]} Qd3+ {[%emt 0:00:00]} 44. Re2 {[%emt 0:00:35]} Qd1+ {[%emt 0:00:00]} 45. Kf2 {[%emt 0:00:44]} Qd4+ {[%emt 0:00:00]} 46. Kg2 {[%emt 0:00:30]} Rxg4+ {[%emt 0:00:00]} 47. Rxg4 {[%emt 0:04:19]} Qxg4+ {[%emt 0:00:00]} 48. Kf1 {[%emt 0:00:38]} Qf3+ {[%emt 0:00:00]} 49. Ke1 {[%emt 0:00:28]} Qg3+ {[%emt 0:00:00]} 50. Kd1 {[%emt 0:00:22]} Qd3+ {[%emt 0:00:39]} 51. Kc1 {[%emt 0:01:00]} Qxc4+ {[%emt 0:00:30]} 52. Kb1 {[%emt 0:00:17]} Qd3+ {[%emt 0:01:05]} 53. Rc2 {[%emt 0:00:09]} 1-0

[Event "GER-ch Youth-U14w 2022"]
[Site "Willingen"]
[Date "2022.06.07"]
[Round "4.5"]
[White "Flierl, Veronika"]
[Black "Bezsonna, Polina"]
[Result "1/2-1/2"]
[ECO "B30"]
[WhiteElo "1427"]
[BlackElo "1511"]
[Annotator "NA RC COMBH"]
[PlyCount "111"]
[EventDate "2022.06.05"]
[EventType "swiss"]
[EventRounds "9"]
[EventCountry "GER"]
[SourceTitle "playchess.com"]
[Source "ChessBase"]
[SourceQuality "1"]
[TimeControl "40/4500+30:900+30"]

1. e4 {[%emt 0:00:00]} c5 {[%emt 0:00:00]} 2. Nf3 {[%emt 0:00:00]} Nc6 {[%emt 0:00:00]} 3. Bb5 {[%emt 0:00:00]} Nd4 {[%emt 0:00:00]} 4. Nxd4 {[%emt 0:00:00]} cxd4 {[%emt 0:00:00]} 5. O-O {[%emt 0:00:00]} g6 {[%emt 0:00:00]} 6. d3 {[%emt 0:00:00]} Bg7 {[%emt 0:00:00]} 7. Nd2 {[%emt 0:00:00]} a6 {[%emt 0:00:00]} 8. Ba4 {[%emt 0:00:20]} e6 {[%emt 0:00:00]} 9. Nf3 {[%emt 0:07:04]} Ne7 {[%emt 0:01:50]} 10. Bf4 {[%emt 0:01:52]} Qa5 {[%emt 0:19:25]} 11. Bb3 {[%emt 0:02:11]} e5 {[%emt 0:01:28]} 12. Bd2 {[%emt 0:06:56]} Qd8 {[%emt 0:02:20]} 13. Bb4 {[%emt 0:03:24]} d6 {[%emt 0:03:59]} 14. Ng5 {[%emt 0:07:12]} O-O {[%emt 0:01:40]} 15. Qf3 {[%emt 0:04:31]} Be6 {[%emt 0:22:35]} 16. Nxe6 {[%emt 0:04:10]} fxe6 {[%emt 0:00:09]} 17. Bxe6+ {[%emt 0:00:11]} Kh8 {[%emt 0:00:33]} 18. Qe2 {[%emt 0:06:30]} b5 {[%emt 0:02:35]} 19. Bd2 {[%emt 0:02:26]} d5 {[%emt 0:07:48]} 20. Rae1 {[%emt 0:08:33]} Qd6 {[%emt 0:02:23]} 21. Bg4 {[%emt 0:01:57]} dxe4 {[%emt 0:04:16]} 22. Qxe4 {[%emt 0:01:24]} Nd5 {[%emt 0:02:36]} 23. a3 {[%emt 0:02:38]} Rae8 {[%emt 0:01:09]} 24. Bf3 {[%emt 0:01:43]} Nf6 {[%emt 0:03:31]} 25. Qe2 {[%emt 0:04:43]} Qc7 {[%emt 0:01:02]} 26. Bb4 {[%emt 0:00:56]} Rf7 {[%emt 0:00:31]} 27. Qd2 {[%emt 0:02:44]} Rc8 {[%emt 0:08:06]} 28. Rc1 {[%emt 0:01:09]} h5 {[%emt 0:00:36]} 29. Ba5 {[%emt 0:00:23]} Qd6 {[%emt 0:00:22]} 30. Qe2 {[%emt 0:03:57]} Bh6 {[%emt 0:00:46]} 31. Bd2 {[%emt 0:00:22]} Bg7 {[%emt 0:00:27]} 32. Rfe1 {[%emt 0:02:21]} Re8 {[%emt 0:00:26]} 33. Ra1 {[%emt 0:00:46]} Qc7 {[%emt 0:00:39]} 34. Rec1 {[%emt 0:01:02]} Rfe7 {[%emt 0:00:32]} 35. Be4 {[%emt 0:01:39]} Nxe4 {[%emt 0:00:35]} 36. Qxe4 {[%emt 0:00:18]} Kh7 {[%emt 0:00:18]} 37. Bg5 {[%emt 0:02:34]} Rf7 {[%emt 0:00:42]} 38. Qe2 {[%emt 0:02:44]} Qb7 {[%emt 0:00:32]} 39. Re1 {[%emt 0:01:37]} Qd7 {[%emt 0:00:28]} 40. f4 {[%emt 0:02:08]} Rf5 {[%emt 0:00:31]} 41. h4 {[%emt 0:00:00]} Qc6 {[%emt 0:00:00]} 42. Rac1 {[%emt 0:00:00]} Ref8 {[%emt 0:00:00]} 43. g3 {[%emt 0:00:00]} Re8 {[%emt 0:03:06]} 44. Qe4 {[%emt 0:00:00]} Qd7 {[%emt 0:01:19]} 45. Re2 {[%emt 0:00:00]} Rff8 {[%emt 0:03:11]} 46. Rce1 {[%emt 0:02:31]} exf4 {[%emt 0:02:50]} 47. Qxe8 {[%emt 0:00:50]} Rxe8 {[%emt 0:00:09]} 48. Rxe8 {[%emt 0:00:11]} fxg3 {[%emt 0:02:08]} 49. Kg2 {[%emt 0:00:29]} Qc6+ {[%emt 0:00:45]} 50. Kxg3 {[%emt 0:01:06]} Qxc2 {[%emt 0:00:49]} 51. R8e7 {[%emt 0:03:54]} Qxd3+ {[%emt 0:00:37]} 52. Kh2 {[%emt 0:00:59]} Qf3 {[%emt 0:01:38]} 53. Rg1 {[%emt 0:03:14]} d3 {[%emt 0:02:54]} 54. Rg3 {[%emt 0:00:37]} Qf2+ {[%emt 0:00:40]} 55. Rg2 {[%emt 0:00:12]} Qd4 {[%emt 0:00:40]} 56. Kh3 {[%emt 0:03:02]} 1/2-1/2

[Event "GER-ch Youth-U14w 2022"]
[Site "Willingen"]
[Date "2022.06.07"]
[Round "4.6"]
[White "Jacobasch, Ronja"]
[Black "Eichhorn, Mathilda"]
[Result "1/2-1/2"]
[ECO "C00"]
[WhiteElo "1441"]
[BlackElo "1330"]
[Annotator "NA RC COMBH"]
[PlyCount "71"]
[EventDate "2022.06.05"]
[EventType "swiss"]
[EventRounds "9"]
[EventCountry "GER"]
[SourceTitle "playchess.com"]
[Source "ChessBase"]
[SourceQuality "1"]
[TimeControl "40/4500+30:900+30"]

1. e4 {[%emt 0:00:00]} e6 {[%emt 0:00:00]} 2. d3 {[%emt 0:00:00]} d5 {[%emt 0:00:00]} 3. Nd2 {[%emt 0:00:00]} c5 {[%emt 0:00:00]} 4. Ngf3 {[%emt 0:00:00]} Nc6 {[%emt 0:00:00]} 5. g3 {[%emt 0:00:00]} Nf6 {[%emt 0:00:00]} 6. Bg2 {[%emt 0:00:00]} Bd6 {[%emt 0:00:00]} 7. O-O {[%emt 0:00:00]} O-O {[%emt 0:00:00]} 8. Re1 {[%emt 0:00:00]} Bc7 {[%emt 0:00:00]} 9. c3 {[%emt 0:00:00]} b6 {[%emt 0:00:35]} 10. Qe2 {[%emt 0:00:00]} Re8 {[%emt 0:01:35]} 11. Nf1 {[%emt 0:00:00]} h6 {[%emt 0:03:28]} 12. h4 {[%emt 0:05:23]} Bb7 {[%emt 0:07:53]} 13. N1h2 {[%emt 0:11:03]} dxe4 {[%emt 0:06:30]} 14. dxe4 {[%emt 0:00:58]} Qe7 {[%emt 0:02:16]} 15. e5 {[%emt 0:08:06]} Nd7 {[%emt 0:01:57]} 16. Bf4 {[%emt 0:00:50]} Rac8 {[%emt 0:03:50]} 17. Bh3 {[%emt 0:11:02]} Nf8 {[%emt 0:05:03]} 18. Ng4 {[%emt 0:14:47]} h5 {[%emt 0:10:48]} 19. Ngh2 {[%emt 0:07:30]} Nh7 {[%emt 0:07:33]} 20. Ng5 {[%emt 0:02:42]} g6 {[%emt 0:01:19]} 21. Qe3 {[%emt 0:02:21]} Bd8 {[%emt 0:04:41]} 22. Nhf3 {[%emt 0:02:20]} Qf8 {[%emt 0:04:10]} 23. Nxh7 {[%emt 0:00:44]} Kxh7 {[%emt 0:00:13]} 24. Ng5+ {[%emt 0:01:07]} Bxg5 {[%emt 0:01:27]} 25. Bxg5 {[%emt 0:00:28]} Ne7 {[%emt 0:03:21]} 26. Rad1 {[%emt 0:02:33]} Bc6 {[%emt 0:04:48]} 27. Rd2 {[%emt 0:02:11]} Rcd8 {[%emt 0:02:12]} 28. Red1 {[%emt 0:01:37]} Rxd2 {[%emt 0:00:24]} 29. Rxd2 {[%emt 0:01:57]} Rd8 {[%emt 0:01:58]} 30. Rxd8 {[%emt 0:04:26]} Qxd8 {[%emt 0:00:05]} 31. Qe2 {[%emt 0:00:27]} Qd5 {[%emt 0:01:18]} 32. f3 {[%emt 0:01:50]} Nf5 {[%emt 0:01:16]} 33. Bxf5 {[%emt 0:01:27]} exf5 {[%emt 0:00:11]} 34. b3 {[%emt 0:02:12]} Qxf3 {[%emt 0:00:49]} 35. Qxf3 {[%emt 0:00:07]} Bxf3 {[%emt 0:00:35]} 36. b4 1/2-1/2

[Event "GER-ch Youth-U14w 2022"]
[Site "Willingen"]
[Date "2022.06.07"]
[Round "4.7"]
[White "Hergenroeder, Cora"]
[Black "Fock, Madiha"]
[Result "1/2-1/2"]
[ECO "D30"]
[WhiteElo "1453"]
[BlackElo "1468"]
[Annotator "NA RC COMBH"]
[PlyCount "85"]
[EventDate "2022.06.05"]
[EventType "swiss"]
[EventRounds "9"]
[EventCountry "GER"]
[SourceTitle "playchess.com"]
[Source "ChessBase"]
[SourceQuality "1"]
[TimeControl "40/4500+30:900+30"]

1. d4 {[%emt 0:00:00]} d5 {[%emt 0:00:00]} 2. c4 {[%emt 0:00:00]} e6 {[%emt 0:00:00]} 3. cxd5 {[%emt 0:00:00]} exd5 {[%emt 0:00:00]} 4. Nc3 {[%emt 0:00:00]} c6 {[%emt 0:00:00]} 5. Nf3 {[%emt 0:00:00]} Be7 {[%emt 0:00:00]} 6. Bf4 {[%emt 0:00:00]} Nf6 {[%emt 0:00:00]} 7. e3 {[%emt 0:00:00]} Bf5 {[%emt 0:00:00]} 8. Bd3 {[%emt 0:00:00]} Bxd3 {[%emt 0:00:00]} 9. Qxd3 {[%emt 0:00:00]} Nbd7 {[%emt 0:00:00]} 10. O-O {[%emt 0:00:00]} O-O {[%emt 0:00:00]} 11. Rab1 {[%emt 0:00:00]} a5 {[%emt 0:00:00]} 12. h3 {[%emt 0:00:00]} Re8 {[%emt 0:00:00]} 13. Na4 {[%emt 0:11:17]} Ne4 {[%emt 0:09:35]} 14. Qb3 {[%emt 0:09:28]} Ra7 {[%emt 0:06:55]} 15. Rfd1 {[%emt 0:07:34]} Bd6 {[%emt 0:09:31]} 16. Bxd6 {[%emt 0:00:09]} Nxd6 {[%emt 0:00:06]} 17. Ne1 {[%emt 0:01:07]} Ne4 {[%emt 0:14:16]} 18. Nd3 {[%emt 0:10:14]} Qe7 {[%emt 0:10:15]} 19. Qc2 {[%emt 0:08:12]} b5 {[%emt 0:08:06]} 20. Nc3 {[%emt 0:02:07]} Ra6 {[%emt 0:03:23]} 21. Nxe4 {[%emt 0:01:22]} dxe4 {[%emt 0:00:31]} 22. Nc5 {[%emt 0:07:59]} Nxc5 {[%emt 0:02:56]} 23. Qxc5 {[%emt 0:00:55]} Qe6 {[%emt 0:01:59]} 24. b3 {[%emt 0:09:32]} Rd8 {[%emt 0:02:01]} 25. Qg5 {[%emt 0:02:34]} Rd5 {[%emt 0:02:12]} 26. Qg3 {[%emt 0:00:40]} Ra8 {[%emt 0:01:05]} 27. Rdc1 {[%emt 0:02:54]} Rc8 {[%emt 0:02:16]} 28. Rc2 {[%emt 0:02:34]} h6 {[%emt 0:01:00]} 29. Rbc1 {[%emt 0:01:20]} Rg5 {[%emt 0:00:31]} 30. Qh2 {[%emt 0:00:32]} Qd7 {[%emt 0:03:25]} 31. Rc5 {[%emt 0:01:01]} Rxc5 {[%emt 0:00:41]} 32. Rxc5 {[%emt 0:00:05]} Rd8 {[%emt 0:01:05]} 33. Qe5 {[%emt 0:01:20]} Re8 {[%emt 0:00:21]} 34. Qf5 {[%emt 0:00:43]} Qd6 {[%emt 0:01:10]} 35. Qg4 {[%emt 0:00:44]} Kf8 {[%emt 0:02:14]} 36. Qe2 {[%emt 0:02:36]} Re6 {[%emt 0:02:17]} 37. Qc2 {[%emt 0:01:53]} Kg8 {[%emt 0:01:26]} 38. Rh5 {[%emt 0:01:29]} Qb4 {[%emt 0:01:35]} 39. Kf1 {[%emt 0:01:23]} Qd6 {[%emt 0:02:16]} 40. Kg1 {[%emt 0:02:38]} Qb4 {[%emt 0:00:34]} 41. Kf1 {[%emt 0:16:07]} Qd6 {[%emt 0:15:11]} 42. Kg1 {[%emt 0:00:00]} Qb4 {[%emt 0:00:00]} 43. Kf1 1/2-1/2

[Event "GER-ch Youth-U14w 2022"]
[Site "Willingen"]
[Date "2022.06.07"]
[Round "4.8"]
[White "Göb, Franziska"]
[Black "Stepanjan, Marianne"]
[Result "0-1"]
[ECO "B52"]
[WhiteElo "1362"]
[BlackElo "1489"]
[Annotator "NA RC COMBH"]
[PlyCount "50"]
[EventDate "2022.06.05"]
[EventType "swiss"]
[EventRounds "9"]
[EventCountry "GER"]
[SourceTitle "playchess.com"]
[Source "ChessBase"]
[SourceQuality "1"]
[TimeControl "40/4500+30:900+30"]

1. e4 {[%emt 0:00:00]} c5 {[%emt 0:00:00]} 2. Nf3 d6 {[%emt 0:00:00]} 3. Bb5+ {[%emt 0:00:00]} Bd7 {[%emt 0:00:00]} 4. Bxd7+ {[%emt 0:00:00]} Nxd7 {[%emt 0:00:00]} 5. c4 {[%emt 0:00:00]} Ngf6 {[%emt 0:00:00]} 6. Nc3 {[%emt 0:00:00]} e6 7. d4 {[%emt 0:00:00]} cxd4 {[%emt 0:00:00]} 8. Nxd4 {[%emt 0:00:00]} a6 {[%emt 0:00:00]} 9. Qd3 {[%emt 0:00:00]} Ne5 {[%emt 0:00:00]} 10. Qe2 {[%emt 0:00:00]} Qc7 {[%emt 0:07:17]} 11. b3 {[%emt 0:03:36]} b5 {[%emt 0:10:24]} 12. f4 {[%emt 0:10:14]} Ned7 {[%emt 0:07:29]} 13. f5 {[%emt 0:18:30]} e5 {[%emt 0:04:21]} 14. Nc2 {[%emt 0:03:56]} Rc8 {[%emt 0:05:13]} 15. Ne3 {[%emt 0:07:53]} bxc4 {[%emt 0:09:16]} 16. Nxc4 {[%emt 0:05:59]} Nb6 {[%emt 0:04:54]} 17. Nxb6 {[%emt 0:04:30]} Qxc3+ {[%emt 0:03:33]} 18. Kf2 {[%emt 0:01:27]} Rb8 {[%emt 0:12:28]} 19. Be3 {[%emt 0:05:02]} Nxe4+ {[%emt 0:01:10]} 20. Kf3 {[%emt 0:01:08]} Qc6 {[%emt 0:09:08]} 21. Kg4 {[%emt 0:05:57]} h5+ {[%emt 0:01:07]} 22. Kh3 {[%emt 0:00:18]} Nc5 {[%emt 0:05:21]} 23. Nc4 {[%emt 0:03:54]} Be7 {[%emt 0:01:14]} 24. Rac1 {[%emt 0:01:21]} Qe4 {[%emt 0:01:24]} 25. Rhf1 {[%emt 0:01:56]} Qh4# 0-1

[Event "GER-ch Youth-U14w 2022"]
[Site "Willingen"]
[Date "2022.06.07"]
[Round "4.10"]
[White "Mueller, Riyanna"]
[Black "Hoffmann, Sophia"]
[Result "1-0"]
[ECO "C54"]
[WhiteElo "1521"]
[BlackElo "1289"]
[Annotator "NA RC COMBH"]
[PlyCount "123"]
[EventDate "2022.06.05"]
[EventType "swiss"]
[EventRounds "9"]
[EventCountry "GER"]
[SourceTitle "playchess.com"]
[Source "ChessBase"]
[SourceQuality "1"]
[TimeControl "40/4500+30:900+30"]

1. e4 {[%emt 0:00:00]} e5 {[%emt 0:00:00]} 2. Nf3 {[%emt 0:00:00]} Nc6 {[%emt 0:00:00]} 3. Bc4 {[%emt 0:00:00]} Bc5 {[%emt 0:00:00]} 4. c3 {[%emt 0:00:00]} Nf6 {[%emt 0:00:00]} 5. d3 {[%emt 0:00:00]} d6 {[%emt 0:00:00]} 6. O-O {[%emt 0:00:00]} Bg4 {[%emt 0:00:00]} 7. h3 {[%emt 0:00:00]} Bh5 {[%emt 0:00:00]} 8. Nbd2 {[%emt 0:00:00]} O-O {[%emt 0:00:00]} 9. Re1 {[%emt 0:00:00]} h6 {[%emt 0:00:00]} 10. Nf1 {[%emt 0:00:00]} Nh7 {[%emt 0:00:00]} 11. Ng3 {[%emt 0:00:00]} Bxf3 {[%emt 0:02:53]} 12. Qxf3 {[%emt 0:00:00]} Ng5 {[%emt 0:06:54]} 13. Qg4 {[%emt 0:06:13]} Qf6 {[%emt 0:07:40]} 14. d4 {[%emt 0:00:44]} exd4 {[%emt 0:09:07]} 15. Nh5 {[%emt 0:00:44]} Qe7 {[%emt 0:06:17]} 16. h4 {[%emt 0:02:22]} Ne5 {[%emt 0:11:34]} 17. Qg3 {[%emt 0:01:03]} Nxc4 {[%emt 0:03:59]} 18. hxg5 {[%emt 0:02:15]} g6 {[%emt 0:09:09]} 19. gxh6 {[%emt 0:08:24]} Qe5 {[%emt 0:02:26]} 20. Qxe5 {[%emt 0:08:31]} dxe5 {[%emt 0:00:36]} 21. Nf6+ {[%emt 0:00:08]} Kh8 {[%emt 0:00:06]} 22. Nd7 {[%emt 0:00:10]} Be7 {[%emt 0:16:47]} 23. Nxf8 {[%emt 0:00:08]} Rxf8 {[%emt 0:00:06]} 24. cxd4 {[%emt 0:00:12]} exd4 {[%emt 0:00:21]} 25. b3 {[%emt 0:01:05]} Ne5 {[%emt 0:01:48]} 26. Rd1 {[%emt 0:01:41]} Rd8 {[%emt 0:00:33]} 27. Bf4 {[%emt 0:00:39]} Bf6 {[%emt 0:01:08]} 28. Bxe5 {[%emt 0:04:18]} Bxe5 {[%emt 0:00:09]} 29. Rac1 {[%emt 0:01:02]} Rd7 {[%emt 0:04:42]} 30. Rc5 {[%emt 0:02:40]} Re7 {[%emt 0:01:40]} 31. g3 {[%emt 0:01:49]} b6 {[%emt 0:01:25]} 32. Rc6 {[%emt 0:02:27]} Kh7 {[%emt 0:01:30]} 33. f4 {[%emt 0:00:27]} Bd6 {[%emt 0:00:07]} 34. e5 {[%emt 0:02:23]} Bc5 {[%emt 0:00:23]} 35. Kg2 {[%emt 0:00:13]} Kxh6 {[%emt 0:00:43]} 36. Kf3 {[%emt 0:01:04]} Kg7 {[%emt 0:00:51]} 37. Ke4 {[%emt 0:00:46]} f5+ {[%emt 0:00:33]} 38. Kd3 {[%emt 0:01:18]} Kf7 {[%emt 0:00:31]} 39. Kc4 {[%emt 0:00:14]} a5 {[%emt 0:00:30]} 40. Rxc5 {[%emt 0:04:01]} bxc5 {[%emt 0:00:13]} 41. Kxc5 {[%emt 0:15:05]} Re6 {[%emt 0:00:00]} 42. Rxd4 {[%emt 0:00:00]} Ke7 {[%emt 0:00:00]} 43. Kb5 {[%emt 0:00:00]} Rb6+ {[%emt 0:00:00]} 44. Kxa5 {[%emt 0:00:00]} Rb8 {[%emt 0:00:00]} 45. Rd2 {[%emt 0:00:00]} Rh8 {[%emt 0:02:32]} 46. a4 {[%emt 0:00:00]} Rb8 {[%emt 0:01:58]} 47. Rd3 {[%emt 0:00:00]} Rb7 {[%emt 0:00:53]} 48. Rc3 {[%emt 0:00:00]} Kd7 {[%emt 0:00:43]} 49. b4 {[%emt 0:00:00]} Ke6 {[%emt 0:05:17]} 50. b5 {[%emt 0:00:00]} Ke7 {[%emt 0:03:02]} 51. Rc6 {[%emt 0:00:00]} Kf7 {[%emt 0:00:10]} 52. Ka6 {[%emt 0:00:00]} Rb8 {[%emt 0:00:22]} 53. Rxc7+ {[%emt 0:00:00]} Ke6 {[%emt 0:00:12]} 54. b6 {[%emt 0:00:00]} Ra8+ {[%emt 0:00:38]} 55. Ra7 {[%emt 0:00:00]} Rc8 {[%emt 0:00:22]} 56. b7 {[%emt 0:00:00]} Rc6+ {[%emt 0:00:12]} 57. Kb5 {[%emt 0:00:00]} Rc1 {[%emt 0:00:05]} 58. Ra8 {[%emt 0:00:00]} Rb1+ {[%emt 0:00:51]} 59. Ka6 {[%emt 0:00:00]} Ra1 {[%emt 0:00:16]} 60. a5 {[%emt 0:00:00]} Rb1 {[%emt 0:01:44]} 61. b8=Q {[%emt 0:00:00]} Rb7 {[%emt 0:00:34]} 62. Qd6+ {[%emt 0:00:00]} 1-0